Workbook

Sheet Salary_calc
B1: база (план) | C1: план (Выполнено) | D1: план (Выполнено) % | E1: Премия за регламент/приход денег | G1: условия
A3: План начальный 1 месяц на одного клиента | B3: 20
A4: Количество клиентов | B4: 1000 | C4: =C5+C6 -> 790 | D4: =(C4/B4)*100 -> 79
A5: количество платных план 40% от кол-ва клиентов | B5: =B4*0.4 -> 400 | C5: 250 | D5: =(C5/B5)*100 -> 62.5
A6: количество бесплатных план 60% от кол-ва клиентов | B6: =B4*0.6 -> 600 | C6: 540 | D6: =(C6/B6)*100 -> 90 | F6: =(C6/B6)*100
A7: Приход денег | B7: 12100 | C7: =IF(B10<=B7,B10,B7) -> 7562.5 | D7: =(C7/B7)*100 -> 62.5
A8: План деньги | B8: =B4*B3 -> 20000 | D8: =(B7/B8)*100 -> 60.5 | F8: =(B7/B8)*100
B9: =IF(B7<=B8,(B8/100)*110,(B7/100)*105) -> 22000
A10: План выполнено (приход денег)(расчетный) | B10: =(B7/100)*D5 -> 7562.5
B11: 100 | E11: новый вариант | F11: старый вариант
A12: Зарплата за регламент платные | B12: =C7*0.05 -> 378.125 | C12: =(B12/100)*D12 -> 236.328125 | D12: =D5 -> 62.5 | E12: =salary_level(salary_plan,budget_ratio) -> 142.9785156 | F12: =salary_level(salary_plan,budget_ratio) -> 142.9785156
A13: Зарплата за регламент бесплатные | B13: =C7*0.05 -> 378.125 | C13: =(B13/100)*D13 -> 340.3125 | D13: =IF(D6<=100,D6,B11) -> 90 | E13: =salary_level_less_100(salary_1,budget_ratio,free_60_percent) -> 205.8890625 | F13: =salary_level(salary_1,budget_ratio) -> 205.8890625
A14: Зарплата за деньги платные | B14: =C7*0.1 -> 756.25 | C14: =(B14/100)*D14 -> 472.65625 | D14: =D7 -> 62.5 | E14: =salary_level_less_100(salary_2,budget_ratio,free_60_percent) -> 285.9570312 | F14: =salary_level(salary_2,budget_ratio) -> 285.9570312
A15: Зарплата итого | E15: =400+E12+E13+E14 -> 1034.824609

Sheet Формула расчета
